fUSD/lending_fUSD_20250620
["ID","MTS","AMOUNT","RATE_DAILY","PERIOD"]
[366767578,1750440663256,-500.0,0.00026773,2]
[366767579,1750440663267,-152.71916323,0.00026773,2]
[366767580,1750440663277,-501.03946455,0.00026773,2]
[366767581,1750440663287,-587.34850112,0.00026773,2]
[366767582,1750440663297,-500.0,0.00026773,2]
[366767583,1750440663307,-500.0,0.00026773,2]
[366767584,1750440663317,-500.0,0.00026773,2]
[366767585,1750440663328,-502.54937556,0.00026773,2]
[366767586,1750440663339,-500.0,0.00026773,2]
[366767587,1750440663349,-500.0,0.00026773,2]
[366767588,1750440663360,-1142.64466,0.0002678,2]
[366767589,1750440663370,-239.69400962,0.00026789,2]
[366767590,1750440663381,-457.95134676,0.00026792,10]
[366767591,1750440663391,-1000.0,0.00026792,10]
[366767592,1750440663401,-1000.0,0.00026792,10]
[366767593,1750440663412,-1000.0,0.00026792,10]
[366767594,1750440663422,-1000.0,0.00026792,10]
[366767595,1750440663432,-1000.0,0.00026792,10]
[366767596,1750440663443,-1000.0,0.00026792,10]
[366767597,1750440663453,-1000.0,0.00026792,10]
[366767598,1750440663464,-1000.0,0.00026792,10]
[366767599,1750440663474,-1000.0,0.00026792,10]
[366767600,1750440663484,-1000.0,0.00026792,10]
[366767601,1750440663498,-1692.80737687,0.00026797,15]
[366767602,1750440663509,-166.0,0.000268,4]
[366767603,1750440663519,-696.74,0.000268,2]
[366767604,1750440663530,-156.587,0.00026808,2]
[366767605,1750440663540,-693.3919763,0.00026808,2]
[366767606,1750440663550,-215.0738,0.00026808,2]
[366767607,1750440663560,-239.69400962,0.00026818,2]
[366767608,1750440663571,-239.69400962,0.00026847,2]
[366767609,1750440663582,-168.0,0.00026854,2]
[366767610,1750440663591,-239.69400962,0.00026876,2]
[366767611,1750440663601,-4500.0,0.000269,9]
[366767612,1750440663612,-239.69400962,0.00026906,2]
[366767613,1750440663623,-4181.38722174,0.00026929,2]
[366767614,1750440663632,-239.69400962,0.00026935,2]
[366767615,1750440663642,-400.0,0.0002697,2]
[366767616,1750440663652,-1158.26537402,0.0002697,2]
[366767617,1750440663662,-170.91,0.00026971,2]
[366767618,1750440663672,-150.0,0.00026971,2]
[366767619,1750440663682,-300.82,0.00026971,2]
[366767620,1750440663692,-170.91,0.00026971,2]
[366767621,1750440663702,-498.96,0.00026971,2]
[366767622,1750440663713,-150.0,0.00026971,2]
[366767623,1750440663726,-150.0,0.00026971,2]
[366767624,1750440663736,-150.0,0.00026971,2]
[366767625,1750440663752,-455.32,0.00026971,2]
[366767626,1750440663763,-170.91,0.00026971,2]
[366767627,1750440663773,-171.0,0.00026971,2]
[366767628,1750440663785,-150.0,0.00026982,2]
[366767629,1750440663795,-7260.07146907,0.00026982,2]
[366767630,1750440663807,-150.0,0.00026982,2]
[366767631,1750440663818,-26690.12430193,0.00026982,2]
[366767632,1750440663828,-150.0,0.00026982,2]
[366767633,1750440663838,-4491.07336668,0.00026982,2]
[366767634,1750440663848,-500.0,0.00026986,2]
[366767635,1750440663859,-2973.75,0.00026987,2]
[366767636,1750440663869,-2973.75,0.00026987,2]
[366767637,1750440663879,-2973.75,0.00026987,2]
[366767638,1750440663890,-2973.75,0.00026987,2]
[366767639,1750440663900,-2973.75,0.00026987,2]
[366767640,1750440663910,-2973.75,0.00026987,2]
[366767641,1750440663920,-2973.75,0.00026987,2]
[366767642,1750440663931,-2973.75,0.00026987,2]
[366767643,1750440663941,-2973.75,0.00026987,2]
[366767644,1750440663952,-2973.75,0.00026987,2]
[366767645,1750440663962,-2973.75,0.00026987,2]
[366767646,1750440663973,-2973.75,0.00026987,2]
[366767647,1750440663983,-2973.75,0.00026987,2]
[366767648,1750440663999,-2973.75,0.00026987,2]
[366767649,1750440664015,-2973.75,0.00026987,2]
[366767650,1750440664034,-2973.75,0.00026987,2]
[366767651,1750440664049,-2973.75,0.00026987,2]
[366767652,1750440664060,-2973.75,0.00026987,2]
[366767653,1750440664070,-2973.75,0.00026987,2]
[366767654,1750440664081,-2973.88596213,0.00026987,2]
[366767655,1750440664091,-770.0,0.00027,3]
[366767656,1750440664102,-9931.43,0.00027,2]
[366767657,1750440664112,-2000.0,0.00027,2]
[366767658,1750440664122,-2243.572207,0.0002701,2]
[366767659,1750440664132,-168.0,0.00027016,2]
[366767660,1750440664142,-1000.0,0.00027021,2]
[366767661,1750440664152,-1000.0,0.00027021,2]
[366767662,1750440664162,-1000.0,0.00027021,2]
[366767663,1750440664172,-490.0,0.00027027,4]
[366767664,1750440664181,-490.0,0.00027027,4]
[366767665,1750440664192,-490.0,0.00027027,4]
[366767666,1750440664202,-490.0,0.00027027,4]
[366767667,1750440664212,-490.0,0.00027027,4]
[366767668,1750440664222,-501.65,0.00027027,4]
[366767669,1750440664234,-490.0,0.00027027,4]
[366767670,1750440664250,-490.0,0.00027027,4]
[366767671,1750440664261,-490.0,0.00027027,4]
[366767672,1750440664272,-830.23,0.00027027,4]
[366767673,1750440664282,-490.0,0.00027027,4]
[366767674,1750440664292,-490.0,0.00027027,4]
[366767675,1750440664303,-665.05,0.00027027,4]
[366767676,1750440664314,-736.8,0.00027027,4]
[366767677,1750440664325,-490.0,0.00027027,4]
[366767678,1750440664335,-490.0,0.00027027,4]
[366767679,1750440664346,-490.0,0.00027027,4]
[366767680,1750440664356,-490.0,0.00027027,4]
[366767681,1750440664367,-490.0,0.00027027,4]
[366767682,1750440664378,-490.0,0.00027027,4]
[366767683,1750440664389,-490.0,0.00027027,4]
[366767684,1750440664399,-2220.12,0.00027027,4]
[366767685,1750440664410,-316.36101306,0.00027027,4]
[366767686,1750440664420,-490.0,0.00027027,4]
[366767687,1750440664430,-713.54,0.00027027,4]
[366767688,1750440664441,-1265.1,0.00027027,4]
[366767689,1750440664451,-178.65698267,0.00027027,4]
[366767690,1750440664462,-535.39,0.00027027,4]
[366767691,1750440664473,-793.31,0.00027027,4]
[366767692,1750440664484,-666.61,0.00027027,4]
[366767693,1750440664499,-1348.24,0.00027027,4]
[366767694,1750440664510,-490.0,0.00027027,4]
[366767695,1750440664520,-490.0,0.00027027,4]
[366767696,1750440664530,-490.0,0.00027027,4]
[366767697,1750440664541,-490.0,0.00027027,4]
[366767698,1750440664551,-490.0,0.00027027,4]
[366767699,1750440664561,-490.0,0.00027027,4]
[366767700,1750440664571,-490.0,0.00027027,4]
[366767701,1750440664581,-1177.57,0.00027027,4]
[366767702,1750440664591,-490.0,0.00027027,4]
[366767703,1750440664601,-490.0,0.00027027,4]
[366767704,1750440664610,-490.0,0.00027027,4]
[366767705,1750440664620,-448.60265192,0.00027027,2]
[366767706,1750440664631,-771.36,0.00027027,4]
[366767707,1750440664640,-12985.333627,0.00027027,4]
[366767708,1750440664651,-2057.42,0.00027027,4]
[366767709,1750440664661,-490.0,0.00027027,4]
[366767710,1750440664671,-490.0,0.00027027,4]
[366767711,1750440664681,-297.86769303,0.00027027,4]
[366767712,1750440664691,-490.0,0.00027027,2]
[366767713,1750440664701,-156.527436,0.00027027,4]
[366767714,1750440664712,-558.83,0.00027027,4]
[366767715,1750440664722,-490.0,0.00027028,4]
[366767716,1750440664734,-490.0,0.00027028,4]
[366767717,1750440664748,-560.75813043,0.00027028,4]
[366767718,1750440664758,-490.0,0.00027028,4]
[366767719,1750440664768,-490.0,0.00027028,4]
[366767720,1750440664778,-490.0,0.00027028,4]
[366767721,1750440664788,-490.0,0.00027028,4]
[366767722,1750440664798,-490.0,0.00027028,4]
[366767723,1750440664808,-716.45,0.00027028,4]
[366767724,1750440664818,-490.0,0.00027028,4]
[366767725,1750440664828,-490.0,0.00027028,4]
[366767726,1750440664837,-490.0,0.00027028,4]
[366767727,1750440664846,-490.0,0.00027028,4]
[366767728,1750440664856,-520.24,0.00027028,4]
[366767729,1750440664867,-490.0,0.00027028,4]
[366767730,1750440664876,-490.0,0.00027028,4]
[366767731,1750440664887,-754.42,0.00027028,4]
[366767732,1750440664897,-490.0,0.00027028,4]
[366767733,1750440664906,-602.12,0.00027028,4]
[366767734,1750440664916,-490.0,0.00027028,4]
[366767735,1750440664926,-490.0,0.00027028,4]
[366767736,1750440664935,-490.0,0.00027028,4]
[366767737,1750440664945,-490.0,0.00027028,4]
[366767738,1750440664955,-905.83,0.00027028,4]
[366767739,1750440664965,-490.0,0.00027028,4]
[366767740,1750440664975,-490.0,0.00027028,4]
[366767741,1750440664985,-490.0,0.00027028,4]
[366767742,1750440664999,-492.17,0.00027028,4]
[366767743,1750440665010,-1393.17,0.00027028,4]
[366767744,1750440665019,-490.0,0.00027028,4]
[366767745,1750440665029,-490.0,0.00027028,4]
[366767746,1750440665038,-490.0,0.00027028,4]
[366767747,1750440665048,-584.86,0.00027028,4]
[366767748,1750440665058,-490.0,0.00027028,4]
[366767749,1750440665068,-490.0,0.00027028,4]
[366767750,1750440665077,-490.0,0.00027028,4]
[366767751,1750440665087,-490.0,0.00027028,4]
[366767752,1750440665097,-490.0,0.00027028,4]
[366767753,1750440665106,-509.4,0.00027028,4]
[366767754,1750440665116,-721.05,0.00027028,4]
[366767755,1750440665126,-834.17,0.00027028,4]
[366767756,1750440665136,-490.0,0.00027028,4]
[366767757,1750440665145,-490.0,0.00027028,4]
[366767758,1750440665155,-490.0,0.00027028,4]
[366767759,1750440665165,-490.0,0.00027028,4]
[366767760,1750440665175,-554.92,0.00027028,4]
[366767761,1750440665184,-490.0,0.00027028,4]
[366767762,1750440665195,-490.0,0.00027028,4]
[366767763,1750440665205,-490.0,0.00027028,4]
[366767764,1750440665215,-490.0,0.00027028,4]
[366767765,1750440665225,-490.0,0.00027028,4]
[366767766,1750440665235,-490.0,0.00027028,4]
[366767767,1750440665249,-490.0,0.00027028,4]
[366767768,1750440665258,-490.0,0.00027028,4]
[366767769,1750440665268,-490.0,0.00027028,4]
[366767770,1750440665278,-490.0,0.00027028,4]
[366767771,1750440665287,-490.0,0.00027028,4]
[366767772,1750440665298,-555.61,0.00027028,4]
[366767773,1750440665307,-490.0,0.00027028,4]
[366767774,1750440665317,-490.0,0.00027028,4]
[366767775,1750440665327,-490.0,0.00027028,4]
[366767776,1750440665336,-490.0,0.00027028,4]
[366767777,1750440665346,-210.59844483,0.00027028,4]
[366767778,1750440665356,-490.0,0.00027028,4]
[366767779,1750440665366,-541.25,0.00027028,4]
[366767780,1750440665375,-490.0,0.00027028,4]
[366767781,1750440665384,-490.0,0.00027028,4]
[366767782,1750440665394,-490.0,0.00027028,4]
[366767783,1750440665404,-490.0,0.00027028,4]
[366767784,1750440665415,-1906.665071,0.00027028,4]
[366767785,1750440665425,-527.51,0.00027028,4]
[366767786,1750440665436,-11113.072639,0.00027028,4]
[366767787,1750440665446,-764.08,0.00027028,4]
[366767788,1750440665456,-490.0,0.00027028,4]
[366767789,1750440665466,-490.0,0.00027028,4]
[366767790,1750440665476,-570.69,0.00027028,4]
[366767791,1750440665485,-490.0,0.00027028,4]
[366767792,1750440665498,-490.0,0.00027028,4]
[366767793,1750440665508,-890.98,0.00027028,4]
[366767794,1750440665518,-490.0,0.00027028,4]
[366767795,1750440665527,-546.75,0.00027028,4]
[366767796,1750440665537,-1938.15,0.00027028,4]
[366767797,1750440665552,-490.0,0.00027028,4]
[366767798,1750440665562,-490.0,0.00027028,4]
[366767799,1750440665573,-1286.16,0.00027028,4]
[366767800,1750440665582,-490.0,0.00027028,4]
[366767801,1750440665592,-490.0,0.00027028,4]
[366767802,1750440665602,-1042.0,0.00027028,4]
[366767803,1750440665612,-490.0,0.00027028,4]
[366767804,1750440665622,-791.65,0.00027028,4]
[366767805,1750440665632,-490.0,0.00027028,4]
[366767806,1750440665642,-566.26,0.00027028,4]
[366767807,1750440665652,-490.0,0.00027028,4]
[366767808,1750440665663,-580.42178704,0.00027028,4]
[366767809,1750440665673,-490.0,0.00027028,4]
[366767810,1750440665684,-490.0,0.00027028,4]
[366767811,1750440665694,-823.76,0.00027028,4]
[366767812,1750440665704,-490.0,0.00027028,4]
[366767813,1750440665714,-653.43,0.00027028,4]
[366767814,1750440665728,-490.0,0.00027028,4]
[366767815,1750440665739,-490.0,0.00027028,4]
[366767816,1750440665749,-797.01,0.00027028,4]
[366767817,1750440665759,-705.01,0.00027028,4]
[366767818,1750440665770,-493.89,0.00027028,4]
[366767819,1750440665780,-490.0,0.00027028,4]
[366767820,1750440665789,-499.27,0.00027028,4]
[366767821,1750440665801,-928.6,0.00027028,4]
[366767822,1750440665811,-490.0,0.00027028,4]
[366767823,1750440665821,-1752.63,0.00027028,4]
[366767824,1750440665833,-490.0,0.00027028,4]
[366767825,1750440665844,-490.0,0.00027028,4]
[366767826,1750440665854,-490.0,0.00027028,4]
[366767827,1750440665864,-490.0,0.00027028,4]
[366767828,1750440665874,-669.55,0.00027028,4]
[366767829,1750440665883,-490.0,0.00027028,4]
[366767830,1750440665894,-490.0,0.00027028,4]
[366767831,1750440665904,-490.0,0.00027028,4]
[366767832,1750440665915,-490.0,0.00027028,4]
[366767833,1750440665925,-614.6,0.00027028,4]
[366767834,1750440665935,-513.28,0.00027028,4]
[366767835,1750440665946,-1221.53,0.00027028,4]
[366767836,1750440665956,-1000.0,0.00027028,2]
[366767837,1750440665967,-490.0,0.00027029,4]
[366767838,1750440665977,-490.0,0.00027029,4]
[366767839,1750440665993,-490.0,0.00027029,4]
[366767840,1750440666262,-490.0,0.00027029,4]
[366767841,1750440666281,-490.0,0.00027029,4]
[366767842,1750440666292,-490.0,0.00027029,4]
[366767843,1750440666302,-504.7862255,0.00027029,4]
[366767844,1750440666312,-490.0,0.00027029,4]
[366767845,1750440666323,-490.0,0.00027029,4]
[366767846,1750440666333,-490.0,0.00027029,4]
[366767847,1750440666343,-490.0,0.00027029,4]
[366767848,1750440666353,-490.0,0.00027029,4]
[366767849,1750440666363,-490.0,0.00027029,4]
[366767850,1750440666374,-647.28,0.00027029,4]
[366767851,1750440666384,-490.0,0.00027029,4]
[366767852,1750440666394,-516.8,0.00027029,4]
[366767853,1750440666404,-667.67,0.00027029,4]
[366767854,1750440666414,-490.0,0.00027029,4]
[366767855,1750440666424,-490.0,0.00027029,4]
[366767856,1750440666434,-490.0,0.00027029,4]
[366767857,1750440666444,-490.0,0.00027029,4]
[366767858,1750440666454,-504.97,0.00027029,4]
[366767859,1750440666464,-490.0,0.00027029,4]
[366767860,1750440666474,-490.0,0.00027029,4]
[366767861,1750440666484,-490.0,0.00027029,4]
[366767862,1750440666496,-490.0,0.00027029,4]
[366767863,1750440666507,-490.0,0.00027029,4]
[366767864,1750440666517,-490.0,0.00027029,4]
[366767865,1750440666527,-490.0,0.00027029,4]
[366767866,1750440666538,-490.0,0.00027029,4]
[366767867,1750440666548,-514.51,0.00027029,4]
[366767868,1750440666558,-490.0,0.00027029,4]
[366767869,1750440666568,-490.0,0.00027029,4]
[366767870,1750440666578,-490.0,0.00027029,4]
[366767871,1750440666588,-490.0,0.00027029,4]
[366767872,1750440666598,-490.0,0.00027029,4]
[366767873,1750440666608,-603.69,0.00027029,4]
[366767874,1750440666617,-490.0,0.00027029,4]
[366767875,1750440666627,-490.0,0.00027029,4]
[366767876,1750440666637,-490.0,0.00027029,4]
[366767877,1750440666648,-490.0,0.00027029,4]
[366767878,1750440666658,-916.28,0.00027029,4]
[366767879,1750440666668,-490.0,0.00027029,4]
[366767880,1750440666678,-490.0,0.00027029,4]
[366767881,1750440666688,-490.0,0.00027029,4]
[366767882,1750440666698,-490.0,0.00027029,4]
[366767883,1750440666708,-316.74,0.00027029,4]
[366767884,1750440666718,-490.0,0.00027029,4]
[366767885,1750440666729,-578.52,0.00027029,4]
[366767886,1750440666743,-490.0,0.00027029,4]
[366767887,1750440666752,-490.0,0.00027029,4]
[366767888,1750440666762,-490.0,0.00027029,4]
[366767889,1750440666773,-793.1,0.00027029,4]
[366767890,1750440666783,-490.0,0.00027029,4]
[366767891,1750440666793,-490.0,0.00027029,4]
[366767892,1750440666803,-490.0,0.00027029,4]
[366767893,1750440666814,-490.0,0.00027029,4]
[366767894,1750440666825,-490.0,0.00027029,4]
[366767895,1750440666835,-490.0,0.00027029,4]
[366767896,1750440666845,-490.0,0.00027029,4]
[366767897,1750440666854,-490.0,0.00027029,4]
[366767898,1750440666864,-490.0,0.00027029,4]
[366767899,1750440666874,-490.0,0.00027029,4]
[366767900,1750440666884,-490.0,0.00027029,4]
[366767901,1750440666893,-490.0,0.00027029,4]
[366767902,1750440666904,-490.0,0.00027029,4]
[366767903,1750440666914,-490.0,0.00027029,4]
[366767904,1750440666924,-727.94,0.00027029,4]
[366767905,1750440666935,-490.0,0.00027029,4]
[366767906,1750440666945,-490.0,0.00027029,4]
[366767907,1750440666955,-490.0,0.00027029,4]
[366767908,1750440666964,-490.0,0.00027029,4]
[366767909,1750440666974,-490.0,0.00027029,4]
[366767910,1750440666984,-490.0,0.00027029,4]
[366767911,1750440666997,-490.0,0.00027029,4]
[366767912,1750440667006,-490.0,0.00027029,4]
[366767913,1750440667016,-490.0,0.00027029,4]
[366767914,1750440667026,-490.0,0.00027029,4]
[366767915,1750440667035,-490.0,0.00027029,4]
[366767916,1750440667045,-490.0,0.00027029,4]
[366767917,1750440667054,-490.0,0.00027029,4]
[366767918,1750440667064,-591.47,0.00027029,4]
[366767919,1750440667073,-1424.33,0.00027029,4]
[366767920,1750440667083,-490.0,0.00027029,4]
[366767921,1750440667093,-490.0,0.00027029,4]
[366767922,1750440667104,-1144.78,0.00027029,4]
[366767923,1750440667115,-491.74,0.00027029,4]
[366767924,1750440667126,-490.0,0.00027029,4]
[366767925,1750440667137,-1076.06,0.00027029,4]
[366767926,1750440667147,-509.95,0.00027029,4]
[366767927,1750440667157,-490.0,0.00027029,4]
[366767928,1750440667168,-490.0,0.00027029,4]
[366767929,1750440667178,-1366.43,0.00027029,4]
[366767930,1750440667188,-527.56,0.00027029,4]
[366767931,1750440667199,-490.0,0.00027029,4]
[366767932,1750440667208,-1816.18,0.00027029,4]
[366767933,1750440667218,-551.8,0.00027029,4]
[366767934,1750440667228,-682.44,0.00027029,4]
[366767935,1750440667238,-490.0,0.00027029,4]
[366767936,1750440667250,-490.0,0.00027029,4]
[366767937,1750440667260,-490.0,0.00027029,4]
[366767938,1750440667269,-490.0,0.00027029,4]
[366767939,1750440667279,-490.0,0.00027029,4]
[366767940,1750440667289,-574.86,0.00027029,4]
[366767941,1750440667300,-10103.26,0.00027029,4]
[366767942,1750440667309,-490.0,0.00027029,4]
[366767943,1750440667319,-490.0,0.00027029,4]
[366767944,1750440667329,-634.64,0.00027029,4]
[366767945,1750440667339,-1940.17,0.00027029,4]
[366767946,1750440667349,-490.0,0.00027029,4]
[366767947,1750440667359,-710.04,0.00027029,4]
[366767948,1750440667369,-682.88,0.00027029,4]
[366767949,1750440667379,-490.0,0.00027029,4]
[366767950,1750440667389,-2290.89,0.00027029,4]
[366767951,1750440667399,-490.0,0.00027029,4]
[366767952,1750440667409,-490.0,0.00027029,4]
[366767953,1750440667419,-2759.01,0.00027029,4]
[366767954,1750440667428,-3647.07,0.00027029,4]
[366767955,1750440667438,-651.97,0.00027029,4]
[366767956,1750440667448,-490.0,0.00027029,4]
[366767957,1750440667458,-582.01,0.00027029,4]
[366767958,1750440667468,-1217.61,0.00027029,4]
[366767959,1750440667477,-847.56,0.00027029,4]
[366767960,1750440667487,-490.0,0.00027029,4]
[366767961,1750440667500,-1886.27,0.00027029,4]
[366767962,1750440667510,-490.0,0.00027029,4]
[366767963,1750440667520,-1594.08,0.00027029,4]
[366767964,1750440667530,-490.0,0.00027029,4]
[366767965,1750440667539,-490.0,0.00027029,4]
[366767966,1750440667549,-1903.29,0.00027029,4]
[366767967,1750440667559,-665.17,0.00027029,4]
[366767968,1750440667568,-638.76,0.00027029,4]
[366767969,1750440667578,-538.1,0.00027029,4]
[366767970,1750440667588,-1000.0,0.00027029,4]
[366767971,1750440667597,-701.54,0.00027029,4]
[366767972,1750440667607,-490.0,0.00027029,4]
[366767973,1750440667616,-632.98,0.00027029,4]
[366767974,1750440667627,-490.0,0.00027029,4]
[366767975,1750440667638,-1799.61,0.00027029,4]
[366767976,1750440667649,-543.75,0.00027029,4]
[366767977,1750440667659,-490.0,0.00027029,4]
[366767978,1750440667668,-751.18,0.00027029,4]
[366767979,1750440667678,-490.0,0.00027029,4]
[366767980,1750440667688,-490.0,0.00027029,4]
[366767981,1750440667698,-490.0,0.00027029,4]
[366767982,1750440667708,-1965.09,0.00027029,4]
[366767983,1750440667718,-490.0,0.00027029,4]
[366767984,1750440667731,-490.0,0.00027029,4]
[366767985,1750440667741,-490.0,0.00027029,4]
[366767986,1750440667751,-835.07,0.00027029,4]
[366767987,1750440667761,-490.0,0.00027029,4]
[366767988,1750440667772,-490.0,0.00027029,4]
[366767989,1750440667782,-506.38,0.00027029,4]
[366767990,1750440667792,-535.19,0.00027029,4]
[366767991,1750440667802,-1865.75,0.00027029,4]
[366767992,1750440667813,-490.0,0.00027029,4]
[366767993,1750440667823,-490.0,0.00027029,4]
[366767994,1750440667833,-490.0,0.00027029,4]
[366767995,1750440667843,-2004.72,0.00027029,4]
[366767996,1750440667854,-490.0,0.00027029,4]
[366767997,1750440667864,-593.92,0.00027029,4]
[366767998,1750440667874,-764.06,0.00027029,4]
[366767999,1750440667884,-843.4,0.00027029,4]
[366768000,1750440667894,-490.0,0.00027029,4]
[366768001,1750440667905,-490.0,0.00027029,4]
[366768002,1750440667915,-1142.64466,0.0002703,2]
[366768003,1750440667925,-500.0,0.00027033,2]
[366768004,1750440667936,-490.0,0.00027035,4]
[366768005,1750440667946,-490.0,0.00027035,4]
[366768006,1750440667956,-490.0,0.00027035,4]
[366768007,1750440667965,-490.0,0.00027035,4]
[366768008,1750440667976,-250.0,0.00027035,4]
[366768009,1750440667986,-490.0,0.00027035,4]
[366768010,1750440668000,-490.0,0.00027035,4]
[366768011,1750440668011,-490.0,0.00027035,4]
[366768012,1750440668022,-453.31150427,0.00027035,4]
[366768013,1750440668033,-496.62,0.00027035,4]
[366768014,1750440668045,-490.0,0.00027035,4]
[366768015,1750440668055,-490.0,0.00027035,4]
[366768016,1750440668066,-490.0,0.00027035,4]
[366768017,1750440668076,-490.0,0.00027035,4]
[366768018,1750440668087,-490.0,0.00027035,4]
[366768019,1750440668098,-490.0,0.00027035,4]
[366768020,1750440668108,-592.71,0.00027035,4]
[366768021,1750440668118,-490.0,0.00027035,4]
[366768022,1750440668129,-490.0,0.00027035,4]
[366768023,1750440668139,-490.0,0.00027035,4]
[366768024,1750440668149,-490.0,0.00027035,4]
[366768025,1750440668159,-587.78932639,0.00027035,4]
[366768026,1750440668169,-316.16,0.00027035,4]
[366768027,1750440668179,-490.0,0.00027035,4]
[366768028,1750440668189,-490.0,0.00027035,4]
[366768029,1750440668199,-490.0,0.00027035,4]
[366768030,1750440668208,-490.0,0.00027035,4]
[366768031,1750440668218,-490.0,0.00027035,4]
[366768032,1750440668228,-705.73,0.00027035,4]
[366768033,1750440668239,-490.0,0.00027035,4]
[366768034,1750440668253,-490.0,0.00027035,4]
[366768035,1750440668263,-490.0,0.00027035,4]
[366768036,1750440668273,-490.0,0.00027035,4]
[366768037,1750440668283,-490.0,0.00027035,4]
[366768038,1750440668293,-325.28715055,0.00027035,4]
[366768039,1750440668303,-490.0,0.00027035,4]
[366768040,1750440668313,-490.0,0.00027035,4]
[366768041,1750440668323,-430.5757449,0.00027035,4]
[366768042,1750440668332,-490.0,0.00027035,4]
[366768043,1750440668343,-490.0,0.00027035,4]
[366768044,1750440668353,-490.0,0.00027035,4]
[366768045,1750440668363,-490.0,0.00027035,4]
[366768046,1750440668372,-490.0,0.00027035,4]
[366768047,1750440668382,-490.0,0.00027035,4]
[366768048,1750440668392,-490.0,0.00027035,4]
[366768049,1750440668402,-427.57,0.00027035,4]
[366768050,1750440668412,-490.0,0.00027035,4]
[366768051,1750440668422,-490.0,0.00027035,4]
[366768052,1750440668432,-490.0,0.00027035,4]
[366768053,1750440668442,-490.0,0.00027035,4]
[366768054,1750440668451,-490.0,0.00027035,4]
[366768055,1750440668462,-490.0,0.00027035,4]
[366768056,1750440668473,-490.0,0.00027035,4]
[366768057,1750440668483,-490.0,0.00027035,4]
[366768058,1750440668495,-490.0,0.00027035,4]
[366768059,1750440668507,-490.0,0.00027035,4]
[366768060,1750440668516,-490.0,0.00027035,4]
[366768061,1750440668526,-490.0,0.00027035,4]
[366768062,1750440668535,-490.0,0.00027035,4]
[366768063,1750440668547,-490.0,0.00027035,4]
[366768064,1750440668557,-490.0,0.00027035,4]
[366768065,1750440668566,-490.0,0.00027035,4]
[366768066,1750440668577,-490.0,0.00027035,4]
[366768067,1750440668586,-512.5,0.00027035,4]
[366768068,1750440668596,-490.0,0.00027035,4]
[366768069,1750440668606,-490.0,0.00027035,4]
[366768070,1750440668616,-490.0,0.00027035,4]
[366768071,1750440668626,-490.0,0.00027035,4]
[366768072,1750440668636,-417.95119569,0.00027035,4]
[366768073,1750440668646,-490.0,0.00027035,4]
[366768074,1750440668656,-490.0,0.00027035,4]
[366768075,1750440668669,-490.0,0.00027035,4]
[366768076,1750440668679,-490.0,0.00027035,4]
[366768077,1750440668691,-490.0,0.00027035,4]